fUSD/lending_fUSD_20240611
["ID","MTS","AMOUNT","RATE_DAILY","PERIOD"]
[329121012,1718122250782,-500.0,0.00022054,2]
[329121013,1718122250792,-500.0,0.00022054,2]
[329121014,1718122250803,-631.32,0.00022054,2]
[329121015,1718122250813,-1062.77,0.00022054,2]
[329121016,1718122250824,-303.50780331,0.00022054,2]
[329121017,1718122250834,-1061.0,0.00022054,2]
[329121018,1718122250845,-683.44,0.00022054,2]
[329121019,1718122250855,-500.0,0.00022054,2]
[329121020,1718122250866,-500.0,0.00022054,2]
[329121021,1718122250876,-500.0,0.00022054,2]
[329121022,1718122250886,-627.16,0.00022054,2]
[329121023,1718122250896,-500.0,0.00022054,2]
[329121024,1718122250906,-549.37051667,0.00022054,2]
[329121025,1718122250916,-500.0,0.00022054,2]
[329121026,1718122250927,-569.68,0.00022054,2]
[329121027,1718122250937,-500.0,0.00022054,2]
[329121028,1718122250947,-500.0,0.00022054,2]
[329121029,1718122250958,-500.0,0.00022054,2]
[329121030,1718122250968,-500.0,0.00022054,2]
[329121031,1718122250979,-753.58,0.00022054,2]
[329121032,1718122250991,-500.0,0.00022054,2]
[329121033,1718122251001,-500.0,0.00022054,2]
[329121034,1718122251012,-500.0,0.00022054,2]
[329121035,1718122251023,-500.0,0.00022054,2]
[329121036,1718122251047,-500.0,0.00022054,2]
[329121037,1718122251057,-1324.6,0.00022054,2]
[329121038,1718122251066,-502.40989144,0.00022054,2]
[329121039,1718122251076,-1002.38,0.00022054,2]
[329121040,1718122251088,-500.0,0.00022054,2]
[329121041,1718122251098,-500.0,0.00022054,2]
[329121042,1718122251108,-560.35,0.00022054,2]
[329121043,1718122251117,-500.0,0.00022054,2]
[329121044,1718122251127,-500.0,0.00022054,2]
[329121045,1718122251137,-613.97,0.00022054,2]
[329121046,1718122251147,-500.0,0.00022054,2]
[329121047,1718122251156,-1633.38,0.00022054,2]
[329121048,1718122251166,-500.0,0.00022054,2]
[329121049,1718122251175,-500.0,0.00022054,2]
[329121050,1718122251185,-775.46,0.00022054,2]
[329121051,1718122251194,-684.42,0.00022054,2]
[329121052,1718122251211,-1047.66,0.00022054,2]
[329121053,1718122251221,-500.0,0.00022054,2]
[329121054,1718122251230,-500.0,0.00022054,2]
[329121055,1718122251241,-992.01,0.00022054,2]
[329121056,1718122251250,-500.0,0.00022054,2]
[329121057,1718122251260,-500.0,0.00022054,2]
[329121058,1718122251269,-668.11,0.00022054,2]
[329121059,1718122251279,-500.0,0.00022054,2]
[329121060,1718122251290,-905.09,0.00022054,2]
[329121061,1718122251300,-500.0,0.00022054,2]
[329121062,1718122251310,-1000.6,0.00022054,2]
[329121063,1718122251320,-500.0,0.00022054,2]
[329121064,1718122251329,-581.46511643,0.00022054,2]
[329121065,1718122251339,-500.0,0.00022054,2]
[329121066,1718122251350,-702.74,0.00022054,2]
[329121067,1718122251360,-1016.6,0.00022054,2]
[329121068,1718122251370,-500.0,0.00022054,2]
[329121069,1718122251381,-626.43,0.00022054,2]
[329121070,1718122251391,-500.0,0.00022054,2]
[329121071,1718122251402,-500.0,0.00022054,2]
[329121072,1718122251412,-500.0,0.00022054,2]
[329121073,1718122251421,-500.0,0.00022054,2]
[329121074,1718122251431,-500.0,0.00022054,2]
[329121075,1718122251441,-500.0,0.00022054,2]
[329121076,1718122251451,-1216.42,0.00022054,2]
[329121077,1718122251461,-500.0,0.00022054,2]
[329121078,1718122251471,-907.27,0.00022054,2]
[329121079,1718122251481,-509.57,0.00022054,2]
[329121080,1718122251492,-622.25,0.00022054,2]
[329121081,1718122251503,-500.0,0.00022054,2]
[329121082,1718122251514,-500.0,0.00022054,2]
[329121083,1718122251524,-1146.81,0.00022054,2]
[329121084,1718122251535,-557.85,0.00022054,2]
[329121085,1718122251546,-500.0,0.00022054,2]
[329121086,1718122251557,-500.0,0.00022054,2]
[329121087,1718122251568,-500.0,0.00022054,2]
[329121088,1718122251579,-500.0,0.00022054,2]
[329121089,1718122251590,-500.0,0.00022054,2]
[329121090,1718122251601,-552.91,0.00022054,2]
[329121091,1718122251614,-854.81,0.00022054,2]
[329121092,1718122251624,-377.16877142,0.00022054,2]
[329121093,1718122251646,-685.54364486,0.00022054,2]
[329121094,1718122251945,-446.945508,0.00022054,2]
[329121095,1718122251959,-495.02207572,0.00022054,2]
[329121096,1718122251970,-1145.26,0.00022054,2]
[329121097,1718122251981,-658.29,0.00022054,2]
[329121098,1718122251991,-500.0,0.00022054,2]
[329121099,1718122252002,-500.0,0.00022054,2]
[329121100,1718122252014,-500.0,0.00022054,2]
[329121101,1718122252025,-485.0,0.00022054,2]
[329121102,1718122252037,-500.0,0.00022054,2]
[329121103,1718122252047,-500.0,0.00022054,2]
[329121104,1718122252059,-500.0,0.00022054,2]
[329121105,1718122252070,-692.29,0.00022054,2]
[329121106,1718122252081,-1004.21,0.00022054,2]
[329121107,1718122252092,-500.0,0.00022054,2]
[329121108,1718122252103,-500.0,0.00022054,2]
[329121109,1718122252114,-500.0,0.00022054,2]
[329121110,1718122252125,-500.0,0.00022054,2]
[329121111,1718122252135,-2003.18,0.00022054,2]
[329121112,1718122252145,-678.19,0.00022054,2]
[329121113,1718122252155,-500.0,0.00022054,2]
[329121114,1718122252166,-500.0,0.00022054,2]
[329121115,1718122252176,-1884.96,0.00022054,2]
[329121116,1718122252186,-510.62069932,0.00022054,2]
[329121117,1718122252197,-1228.86,0.00022054,2]
[329121118,1718122252217,-500.0,0.00022054,2]
[329121119,1718122252228,-500.0,0.00022054,2]
[329121120,1718122252239,-2467.96,0.00022054,2]
[329121121,1718122252250,-500.0,0.00022054,2]
[329121122,1718122252260,-500.0,0.00022054,2]
[329121123,1718122252272,-1661.39,0.00022054,2]
[329121124,1718122252283,-548.36,0.00022054,2]
[329121125,1718122252293,-1433.52,0.00022054,2]
[329121126,1718122252303,-500.0,0.00022054,2]
[329121127,1718122252314,-800.66,0.00022054,2]
[329121128,1718122252325,-1037.71,0.00022054,2]
[329121129,1718122252336,-500.0,0.00022054,2]
[329121130,1718122252347,-500.0,0.00022054,2]
[329121131,1718122252357,-899.67,0.00022054,2]
[329121132,1718122252369,-514.15,0.00022054,2]
[329121133,1718122252381,-500.0,0.00022054,2]
[329121134,1718122252393,-500.0,0.00022054,2]
[329121135,1718122252403,-618.69,0.00022054,2]
[329121136,1718122252414,-500.0,0.00022054,2]
[329121137,1718122252424,-627.5068011,0.00022054,2]
[329121138,1718122252435,-1506.5,0.00022054,2]
[329121139,1718122252446,-542.14,0.00022054,2]
[329121140,1718122252457,-1403.68,0.00022054,2]
[329121141,1718122252468,-500.0,0.00022054,2]
[329121142,1718122252478,-500.0,0.00022054,2]
[329121143,1718122252488,-500.0,0.00022054,2]
[329121144,1718122252499,-720.34,0.00022054,2]
[329121145,1718122252509,-500.0,0.00022054,2]
[329121146,1718122252520,-500.0,0.00022054,2]
[329121147,1718122252531,-500.0,0.00022054,2]
[329121148,1718122252542,-1338.52,0.00022054,2]
[329121149,1718122252552,-500.0,0.00022054,2]
[329121150,1718122252564,-500.0,0.00022054,2]
[329121151,1718122252575,-812.27,0.00022054,2]
[329121152,1718122252587,-500.0,0.00022054,2]
[329121153,1718122252601,-1632.21,0.00022054,2]
[329121154,1718122252615,-500.0,0.00022054,2]
[329121155,1718122252625,-500.0,0.00022054,2]
[329121156,1718122252635,-500.0,0.00022054,2]
[329121157,1718122252648,-2914.63,0.00022054,2]
[329121158,1718122252658,-500.0,0.00022054,2]
[329121159,1718122252669,-500.0,0.00022054,2]
[329121160,1718122252680,-500.0,0.00022054,2]
[329121161,1718122252694,-970.88,0.00022054,2]
[329121162,1718122252706,-500.0,0.00022054,2]
[329121163,1718122252716,-1042.61,0.00022054,2]
[329121164,1718122252727,-500.0,0.00022054,2]
[329121165,1718122252738,-563.4,0.00022054,2]
[329121166,1718122252748,-1098.07,0.00022054,2]
[329121167,1718122252759,-500.0,0.00022054,2]
[329121168,1718122252769,-2797.89,0.00022054,2]
[329121169,1718122252779,-514.39,0.00022054,2]
[329121170,1718122252790,-1484.55,0.00022054,2]
[329121171,1718122252800,-500.0,0.00022054,2]
[329121172,1718122252811,-1524.07,0.00022054,2]
[329121173,1718122252821,-500.0,0.00022054,2]
[329121174,1718122252832,-500.0,0.00022054,2]
[329121175,1718122252842,-511.31,0.00022054,2]
[329121176,1718122252853,-500.0,0.00022054,2]
[329121177,1718122252862,-500.0,0.00022054,2]
[329121178,1718122252872,-250.0,0.00022054,2]
[329121179,1718122252883,-500.0,0.00022054,2]
[329121180,1718122252893,-1236.16,0.00022054,2]
[329121181,1718122252904,-500.0,0.00022054,2]
[329121182,1718122252914,-780.73,0.00022054,2]
[329121183,1718122252924,-500.0,0.00022054,2]
[329121184,1718122252934,-999.85,0.00022054,2]
[329121185,1718122252944,-1249.98,0.00022054,2]
[329121186,1718122252954,-606.21,0.00022054,2]
[329121187,1718122252964,-583.96,0.00022054,2]
[329121188,1718122252975,-500.0,0.00022054,2]
[329121189,1718122252985,-576.7,0.00022054,2]
[329121190,1718122252995,-500.0,0.00022054,2]
[329121191,1718122253006,-1426.22,0.00022054,2]
[329121192,1718122253015,-500.0,0.00022054,2]
[329121193,1718122253025,-500.0,0.00022054,2]
[329121194,1718122253035,-500.0,0.00022054,2]
[329121195,1718122253045,-597.47,0.00022054,2]
[329121196,1718122253055,-500.0,0.00022054,2]
[329121197,1718122253066,-500.0,0.00022054,2]
[329121198,1718122253076,-500.0,0.00022054,2]
[329121199,1718122253086,-1682.56,0.00022054,2]
[329121200,1718122253096,-972.07,0.00022054,2]
[329121201,1718122253106,-500.0,0.00022054,2]
[329121202,1718122253116,-500.0,0.00022054,2]
[329121203,1718122253126,-1536.24,0.00022054,2]
[329121204,1718122253136,-559.7,0.00022054,2]
[329121205,1718122253146,-660.39,0.00022054,2]
[329121206,1718122253156,-500.0,0.00022054,2]
[329121207,1718122253166,-283.60766289,0.00022054,2]
[329121208,1718122253176,-591.33,0.00022054,2]
[329121209,1718122253186,-500.0,0.00022054,2]
[329121210,1718122253196,-795.15,0.00022054,2]
[329121211,1718122253220,-500.0,0.00022054,2]
[329121212,1718122253231,-500.0,0.00022054,2]
[329121213,1718122253241,-500.0,0.00022054,2]
[329121214,1718122253252,-500.0,0.00022054,2]
[329121215,1718122253263,-500.0,0.00022054,2]
[329121216,1718122253274,-500.0,0.00022054,2]
[329121217,1718122253285,-707.25,0.00022054,2]
[329121218,1718122253296,-500.0,0.00022054,2]
[329121219,1718122253307,-615.68,0.00022054,2]
[329121220,1718122253317,-507.43256847,0.00022054,2]
[329121221,1718122253328,-500.0,0.00022054,2]
[329121222,1718122253338,-625.57,0.00022054,2]
[329121223,1718122253349,-1150.67,0.00022054,2]
[329121224,1718122253359,-525.83935563,0.00022054,2]
[329121225,1718122253369,-500.0,0.00022054,2]
[329121226,1718122253380,-500.0,0.00022054,2]
[329121227,1718122253390,-1081.25,0.00022054,2]
[329121228,1718122253400,-500.0,0.00022054,2]
[329121229,1718122253411,-500.0,0.00022054,2]
[329121230,1718122253421,-500.0,0.00022054,2]
[329121231,1718122253431,-500.0,0.00022054,2]
[329121232,1718122253441,-500.0,0.00022054,2]
[329121233,1718122253451,-1091.6,0.00022054,2]
[329121234,1718122253461,-500.0,0.00022054,2]
[329121235,1718122253471,-500.0,0.00022054,2]
[329121236,1718122253481,-500.0,0.00022054,2]
[329121237,1718122253492,-977.39,0.00022054,2]
[329121238,1718122253502,-500.0,0.00022054,2]
[329121239,1718122253512,-500.0,0.00022054,2]
[329121240,1718122253522,-1528.61,0.00022054,2]
[329121241,1718122253532,-500.0,0.00022054,2]
[329121242,1718122253543,-500.0,0.00022054,2]
[329121243,1718122253553,-676.71,0.00022054,2]
[329121244,1718122253563,-640.48,0.00022054,2]
[329121245,1718122253574,-600.95,0.00022054,2]
[329121246,1718122253584,-841.51,0.00022054,2]
[329121247,1718122253595,-509.53,0.00022054,2]
[329121248,1718122253605,-649.6,0.00022054,2]
[329121249,1718122253619,-2282.53,0.00022054,2]
[329121250,1718122253630,-500.0,0.00022054,2]
[329121251,1718122253641,-621.53,0.00022054,2]
[329121252,1718122253651,-1031.0,0.00022054,2]
[329121253,1718122253661,-500.0,0.00022054,2]
[329121254,1718122253672,-1253.27,0.00022054,2]
[329121255,1718122253683,-987.06,0.00022054,2]
[329121256,1718122253695,-893.04,0.00022054,2]
[329121257,1718122253705,-966.51,0.00022054,2]
[329121258,1718122253715,-500.0,0.00022054,2]
[329121259,1718122253726,-602.19,0.00022054,2]
[329121260,1718122253736,-500.0,0.00022054,2]
[329121261,1718122253746,-400.70006768,0.00022054,2]
[329121262,1718122253756,-500.0,0.00022054,2]
[329121263,1718122253766,-500.0,0.00022054,2]
[329121264,1718122253777,-716.84,0.00022054,2]
[329121265,1718122253786,-584.57,0.00022054,2]
[329121266,1718122253796,-500.0,0.00022054,2]
[329121267,1718122253806,-500.0,0.00022054,2]
[329121268,1718122253815,-500.0,0.00022054,2]
[329121269,1718122253824,-500.0,0.00022054,2]
[329121270,1718122253834,-500.0,0.00022054,2]
[329121271,1718122253844,-578.83,0.00022054,2]
[329121272,1718122253853,-500.0,0.00022054,2]
[329121273,1718122253863,-500.0,0.00022054,2]
[329121274,1718122253872,-1728.76,0.00022054,2]
[329121275,1718122253882,-506.15,0.00022054,2]
[329121276,1718122253891,-500.0,0.00022054,2]
[329121277,1718122253901,-854.16,0.00022054,2]
[329121278,1718122253911,-500.0,0.00022054,2]
[329121279,1718122253921,-500.0,0.00022054,2]
[329121280,1718122253930,-540.14,0.00022054,2]
[329121281,1718122253940,-500.0,0.00022054,2]
[329121282,1718122253949,-500.0,0.00022054,2]
[329121283,1718122253960,-500.0,0.00022054,2]
[329121284,1718122253969,-837.08,0.00022054,2]
[329121285,1718122253979,-495.66343074,0.00022054,2]
[329121286,1718122253989,-500.0,0.00022054,2]
[329121287,1718122253999,-676.23,0.00022054,2]
[329121288,1718122254011,-500.0,0.00022054,2]
[329121289,1718122254021,-500.0,0.00022054,2]
[329121290,1718122254031,-500.0,0.00022054,2]
[329121291,1718122254041,-500.0,0.00022054,2]
[329121292,1718122254051,-500.0,0.00022054,2]
[329121293,1718122254061,-500.0,0.00022054,2]
[329121294,1718122254071,-500.0,0.00022054,2]
[329121295,1718122254081,-351.92700823,0.00022054,2]
[329121296,1718122254092,-500.0,0.00022054,2]
[329121297,1718122254102,-921.55,0.00022054,2]
[329121298,1718122254113,-500.0,0.00022054,2]
[329121299,1718122254123,-610.86277012,0.00022054,2]
[329121300,1718122254134,-1796.6,0.00022054,2]
[329121301,1718122254144,-500.0,0.00022054,2]
[329121302,1718122254155,-500.0,0.00022054,2]
[329121303,1718122254166,-500.0,0.00022054,2]
[329121304,1718122254177,-500.0,0.00022054,2]
[329121305,1718122254189,-500.0,0.00022054,2]
[329121306,1718122254200,-500.0,0.00022054,2]
[329121307,1718122254219,-500.0,0.00022054,2]
[329121308,1718122254230,-2005.89,0.00022054,2]
[329121309,1718122254240,-415.35,0.00022054,2]
[329121310,1718122254251,-500.0,0.00022054,2]
[329121311,1718122254261,-470.9631433,0.00022054,2]
[329121312,1718122254273,-1257.43,0.00022054,2]
[329121313,1718122254283,-500.0,0.00022054,2]
[329121314,1718122254294,-500.0,0.00022054,2]
[329121315,1718122254305,-500.0,0.00022054,2]
[329121316,1718122254315,-1014.27,0.00022054,2]
[329121317,1718122254326,-594.61,0.00022054,2]
[329121318,1718122254337,-1187.6,0.00022054,2]
[329121319,1718122254347,-538.57617824,0.00022054,2]
[329121320,1718122254358,-500.0,0.00022054,2]
[329121321,1718122254370,-2420.25,0.00022054,2]
[329121322,1718122254381,-500.0,0.00022054,2]
[329121323,1718122254392,-500.0,0.00022054,2]
[329121324,1718122254403,-2675.03,0.00022054,2]
[329121325,1718122254414,-1104.19,0.00022054,2]
[329121326,1718122254424,-385.18240727,0.00022054,2]
[329121327,1718122254435,-2151.66,0.00022054,2]
[329121328,1718122254446,-1869.76,0.00022054,2]
[329121329,1718122254457,-1129.58,0.00022054,2]
[329121330,1718122254468,-500.0,0.00022054,2]
[329121331,1718122254479,-500.0,0.00022054,2]
[329121332,1718122254489,-500.0,0.00022054,2]
[329121333,1718122254501,-837.02,0.00022054,2]
[329121334,1718122254512,-500.0,0.00022054,2]
[329121335,1718122254523,-602.42,0.00022054,2]
[329121336,1718122254534,-1074.6,0.00022054,2]
[329121337,1718122254545,-5125.73,0.00022054,2]
[329121338,1718122254556,-500.0,0.00022054,2]
[329121339,1718122254567,-500.0,0.00022054,2]
[329121340,1718122254578,-500.0,0.00022054,2]
[329121341,1718122254589,-956.04,0.00022054,2]
[329121342,1718122254604,-11157.14,0.00022054,2]
[329121343,1718122254615,-3566.86,0.00022054,2]
[329121344,1718122254626,-646.95038586,0.00022054,2]
[329121345,1718122254637,-434.53327138,0.00022054,2]
[329121346,1718122255010,-686.43,0.00021917,2]
[329121347,1718122255021,-500.0,0.00021917,2]
[329121348,1718122255032,-65.46672862,0.00022054,2]
[329121349,1718122255043,-500.0,0.00022054,2]
[329121350,1718122255054,-500.0,0.00022054,2]
[329121351,1718122255064,-1563.64,0.00022054,2]
[329121352,1718122255074,-621.0,0.00022054,2]
[329121353,1718122255085,-697.11,0.00022054,2]
[329121354,1718122255096,-3283.01,0.00022054,2]
[329121355,1718122255106,-1916.3,0.00022054,2]
[329121356,1718122255117,-500.0,0.00022054,2]
[329121357,1718122255129,-500.0,0.00022054,2]
[329121358,1718122255140,-5206.34,0.00022054,2]
[329121359,1718122255150,-500.0,0.00022054,2]
[329121360,1718122255161,-3331.6,0.00022054,2]
[329121361,1718122255172,-562.91,0.00022054,2]
[329121362,1718122255182,-500.0,0.00022054,2]
[329121363,1718122255193,-500.0,0.00022054,2]
[329121364,1718122255211,-1640.98,0.00022054,2]
[329121365,1718122255222,-1845.65,0.00022054,2]
[329121366,1718122255233,-4203.85,0.00022054,2]
[329121367,1718122255244,-715.02,0.00022054,2]
[329121368,1718122255255,-500.0,0.00022054,2]
[329121369,1718122255265,-3215.11,0.00022054,2]
[329121370,1718122255276,-721.95,0.00022054,2]
[329121371,1718122255287,-708.24,0.00022054,2]
[329121372,1718122255298,-1124.96,0.00022054,2]
[329121373,1718122255308,-628.06,0.00022054,2]
[329121374,1718122255320,-500.0,0.00022054,2]
[329121375,1718122255331,-4942.11,0.00022054,2]
[329121376,1718122255341,-500.0,0.00022054,2]
[329121377,1718122255352,-1827.14,0.00022054,2]
[329121378,1718122255362,-500.0,0.00022054,2]
[329121379,1718122255373,-500.0,0.00022054,2]
[329121380,1718122255383,-500.0,0.00022054,2]
[329121381,1718122255394,-535.87,0.00022054,2]
[329121382,1718122255404,-610.88,0.00022054,2]
[329121383,1718122255415,-435.13831701,0.00022054,2]
[329121384,1718122255425,-7292.56,0.00022054,2]
[329121385,1718122255437,-500.0,0.00022054,2]
[329121386,1718122255447,-500.0,0.00022054,2]
[329121387,1718122255458,-746.77,0.00022054,2]
[329121388,1718122255469,-500.0,0.00022054,2]
[329121389,1718122255479,-1847.85,0.00022054,2]
[329121390,1718122255490,-222.74133849,0.00022054,2]
[329121391,1718122255500,-11170.53,0.00022054,2]
[329121392,1718122255510,-1613.08,0.00022054,2]
[329121393,1718122255521,-805.82,0.00022054,2]
[329121394,1718122255532,-500.0,0.00022054,2]
[329121395,1718122255542,-1862.42,0.00022054,2]
[329121396,1718122255554,-1283.31,0.00022054,2]
[329121397,1718122255564,-508.92404301,0.00022054,2]
[329121398,1718122255575,-567.32,0.00022054,2]
[329121399,1718122255587,-500.0,0.00022054,2]
[329121400,1718122255598,-500.0,0.00022054,2]
[329121401,1718122255609,-5297.5,0.00022054,2]
[329121402,1718122255623,-500.0,0.00022054,2]
[329121403,1718122255634,-3747.36,0.00022054,2]
[329121404,1718122255644,-500.0,0.00022054,2]
[329121405,1718122255656,-319.21869439,0.00022054,2]
[329121406,1718122255667,-556.23,0.00022054,2]
[329121407,1718122255678,-10484.42,0.00022054,2]
[329121408,1718122255689,-2460.26,0.00022054,2]
[329121409,1718122255700,-23562.39,0.00022054,2]
[329121410,1718122255711,-3479.57,0.00022054,2]
[329121411,1718122255722,-2319.77,0.00022054,2]
[329121412,1718122255732,-500.0,0.00022054,2]
[329121413,1718122255743,-7992.62,0.00022054,2]
[329121414,1718122255754,-859.95,0.00022054,2]
[329121415,1718122255765,-663.72,0.00022054,2]
[329121416,1718122255777,-1941.65,0.00022054,2]
[329121417,1718122255788,-1256.93,0.00022054,2]
[329121418,1718122255798,-1710.81,0.00022054,2]
[329121419,1718122255809,-500.0,0.00022054,2]
[329121420,1718122255819,-1719.27,0.00022054,2]
[329121421,1718122255830,-2212.44,0.00022054,2]
[329121422,1718122255840,-500.0,0.00022054,2]
[329121423,1718122255850,-2899.34,0.00022054,2]
[329121424,1718122255861,-500.0,0.00022054,2]
[329121425,1718122255871,-500.0,0.00022054,2]
[329121426,1718122255882,-525.27,0.00022054,2]
[329121427,1718122255893,-5519.88,0.00022054,2]
[329121428,1718122255903,-558.30386396,0.00022054,2]
[329121429,1718122255914,-15326.97,0.00022054,2]
[329121430,1718122255925,-14643.1,0.00022054,2]
[329121431,1718122255935,-500.0,0.00022054,2]
[329121432,1718122255946,-500.0,0.00022054,2]
[329121433,1718122255956,-500.0,0.00022054,2]
[329121434,1718122255967,-4042.68,0.00022054,2]
[329121435,1718122255978,-5710.44,0.00022054,2]
[329121436,1718122255988,-4746.93,0.00022054,2]
[329121437,1718122255999,-500.0,0.00022054,2]
[329121438,1718122256010,-579.62,0.00022054,2]
[329121439,1718122256022,-500.0,0.00022054,2]
[329121440,1718122256033,-8208.22,0.00022054,2]
[329121441,1718122256044,-607.32,0.00022054,2]
[329121442,1718122256055,-2200.8,0.00022054,2]
[329121443,1718122256065,-2481.11,0.00022054,2]
[329121444,1718122256076,-1043.98,0.00022054,2]
[329121445,1718122256086,-1097.33,0.00022054,2]
[329121446,1718122256097,-4459.06,0.00022054,2]
[329121447,1718122256107,-8423.27,0.00022054,2]
[329121448,1718122256118,-500.0,0.00022054,2]
[329121449,1718122256128,-500.0,0.00022054,2]
[329121450,1718122256139,-500.0,0.00022054,2]
[329121451,1718122256149,-2891.27,0.00022054,2]
[329121452,1718122256159,-793.97,0.00022054,2]
[329121453,1718122256170,-536.94,0.00022054,2]
[329121454,1718122256181,-500.0,0.00022054,2]
[329121455,1718122256191,-1448.1,0.00022054,2]
[329121456,1718122256204,-500.0,0.00022054,2]
[329121457,1718122256220,-1242.11,0.00022054,2]
[329121458,1718122256231,-500.0,0.00022054,2]
[329121459,1718122256242,-798.12,0.00022054,2]
[329121460,1718122256253,-608.19,0.00022054,2]
[329121461,1718122256263,-3044.58,0.00022054,2]
[329121462,1718122256274,-152.00419671,0.00022054,2]
[329121463,1718122256285,-2280.96,0.00022054,2]
[329121464,1718122256295,-2761.65,0.00022054,2]
[329121465,1718122256306,-1807.24,0.00022054,2]
[329121466,1718122256316,-2232.75,0.00022054,2]
[329121467,1718122256326,-1960.2,0.00022054,2]
[329121468,1718122256337,-500.0,0.00022054,2]
[329121469,1718122256348,-500.0,0.00022054,2]
[329121470,1718122256358,-304.08894672,0.00022054,2]
[329121471,1718122256369,-1144.74,0.00022054,2]
[329121472,1718122256380,-534.15,0.00022054,2]
[329121473,1718122256391,-1400.92,0.00022054,2]
[329121474,1718122256402,-922.8,0.00022054,2]
[329121475,1718122256413,-508.12,0.00022054,2]
[329121476,1718122256425,-500.0,0.00022054,2]
[329121477,1718122256437,-2765.24,0.00022054,2]
[329121478,1718122256448,-1126.26,0.00022054,2]
[329121479,1718122256460,-1006.6,0.00022054,2]
[329121480,1718122256471,-592.11,0.00022054,2]
[329121481,1718122256483,-500.0,0.00022054,2]
[329121482,1718122256495,-1598.28,0.00022054,2]
[329121483,1718122256507,-2908.85,0.00022054,2]
[329121484,1718122256518,-500.0,0.00022054,2]
[329121485,1718122256530,-4898.78,0.00022054,2]
[329121486,1718122256548,-2272.13,0.00022054,2]
[329121487,1718122256560,-4272.93,0.00022054,2]
[329121488,1718122256571,-1588.79,0.00022054,2]
[329121489,1718122256582,-500.0,0.00022054,2]
[329121490,1718122256595,-14781.33,0.00022054,2]
[329121491,1718122256611,-4728.69,0.00022054,2]
[329121492,1718122256624,-9080.45,0.00022054,2]
[329121493,1718122256639,-870.12,0.00022054,2]
[329121494,1718122256650,-500.0,0.00022054,2]
[329121495,1718122256661,-500.0,0.00022054,2]
[329121496,1718122256672,-500.0,0.00022054,2]
[329121497,1718122256683,-1151.46785434,0.00022054,2]
[329121498,1718122257638,-500.0,0.00021917,2]
[329121499,1718122257649,-3830.47214566,0.00022054,2]
[329121500,1718122257660,-1454.9,0.00022054,2]
[329121501,1718122257670,-540.17709152,0.00022054,2]
[329121502,1718122257682,-500.0,0.00022054,2]
[329121503,1718122257693,-514.4606207,0.00022054,2]
[329121504,1718122257704,-1106.42,0.00022054,2]
[329121505,1718122257714,-1293.85,0.00022054,2]
[329121506,1718122257725,-506.03,0.00022054,2]
[329121507,1718122257735,-4344.7,0.00022054,2]
[329121508,1718122257747,-2957.01,0.00022054,2]
[329121509,1718122257757,-500.0,0.00022054,2]
[329121510,1718122257768,-2285.64,0.00022054,2]
[329121511,1718122257779,-500.0,0.00022054,2]